[Event "*** Titled Tuesday Blitz"]
[Site "Chess.com"]
[Date "2019.07.02"]
[Round "2"]
[White "checkmatequen"]
[Black "hermionegrangermagic"]
[Result "0-1"]
[WhiteElo "2226"]
[BlackElo "2320"]
[TimeControl "180+2"]
[EndTime "13:27:16 PDT"]
[Termination "hermionegrangermagic won by resignation"]

1. e4 {[%clk 0:03:01.9]} 1... c5 {[%clk 0:03:00]} 2. Nf3 {[%clk 0:03:02.6]} 2...
Nc6 {[%clk 0:03:01]} 3. d4 {[%clk 0:03:03.7]} 3... cxd4 {[%clk 0:03:02.9]} 4.
Nxd4 {[%clk 0:03:05.6]} 4... e5 {[%clk 0:03:04.1]} 5. Nb5 {[%clk 0:03:06.1]}
5... d6 {[%clk 0:03:05.2]} 6. a4 {[%clk 0:03:07.3]} 6... Nf6 {[%clk 0:03:01.4]}
7. N1c3 {[%clk 0:03:07]} 7... a6 {[%clk 0:02:52.5]} 8. Na3 {[%clk 0:03:07.1]}
8... h6 {[%clk 0:02:44.1]} 9. Bc4 {[%clk 0:02:48.9]} 9... Be7 {[%clk 0:02:43.6]}
10. O-O {[%clk 0:02:48.7]} 10... O-O {[%clk 0:02:44.4]} 11. Re1 {[%clk
0:02:36.8]} 11... Be6 {[%clk 0:02:37.7]} 12. h3 {[%clk 0:02:35.8]} 12... Rc8
{[%clk 0:02:04.5]} 13. Nd5 {[%clk 0:02:21.3]} 13... Bxd5 {[%clk 0:01:54.7]} 14.
Bxd5 {[%clk 0:02:23.2]} 14... Qc7 {[%clk 0:01:47.7]} 15. c3 {[%clk 0:02:23.2]}
15... Nxd5 {[%clk 0:01:23.9]} 16. Qxd5 {[%clk 0:02:23.2]} 16... Nd8 {[%clk
0:01:23.4]} 17. Be3 {[%clk 0:02:15.2]} 17... Ne6 {[%clk 0:01:23.9]} 18. a5
{[%clk 0:02:07.1]} 18... Qc6 {[%clk 0:01:22.6]} 19. Rad1 {[%clk 0:02:05]} 19...
Rfd8 {[%clk 0:01:22.5]} 20. Bb6 {[%clk 0:01:57.8]} 20... Rd7 {[%clk 0:01:20.9]}
21. Nc2 {[%clk 0:01:56.5]} 21... Nf4 {[%clk 0:01:18.9]} 22. Qd2 {[%clk
0:01:54.2]} 22... Bg5 {[%clk 0:01:17.4]} 23. Nb4 {[%clk 0:01:50.9]} 23... Nxh3+
{[%clk 0:00:48]} 24. gxh3 {[%clk 0:01:51.1]} 24... Bxd2 {[%clk 0:00:49.3]} 25.
Nxc6 {[%clk 0:01:51.1]} 25... Bxe1 {[%clk 0:00:50.3]} 26. Na7 {[%clk 0:01:43.8]}
26... Bxf2+ {[%clk 0:00:47.5]} 27. Kxf2 {[%clk 0:01:44.6]} 27... Rc4 {[%clk
0:00:44.4]} 28. Ke3 {[%clk 0:01:45.2]} 28... g6 {[%clk 0:00:38.9]} 29. Kd3
{[%clk 0:01:40.9]} 29... d5 {[%clk 0:00:39.4]} 30. exd5 {[%clk 0:01:35.4]} 30...
Rxd5+ {[%clk 0:00:34.8]} 31. Kxc4 {[%clk 0:01:36]} 31... Rxd1 {[%clk 0:00:35.8]}
32. Nc8 {[%clk 0:01:36.9]} 32... f5 {[%clk 0:00:35]} 33. Bc5 {[%clk 0:01:32.9]}
33... g5 {[%clk 0:00:27.9]} 34. Ne7+ {[%clk 0:01:31.8]} 34... Kf7 {[%clk
0:00:28.7]} 35. Nxf5 {[%clk 0:01:33.7]} 35... Kg6 {[%clk 0:00:26.5]} 36. Nd6
{[%clk 0:01:33.9]} 36... Rh1 {[%clk 0:00:25.2]} 37. Nxb7 {[%clk 0:01:33.6]}
37... Rxh3 {[%clk 0:00:26.2]} 38. b4 {[%clk 0:01:34.7]} 38... Rf3 {[%clk
0:00:22.3]} 39. b5 {[%clk 0:01:31.5]} 39... Rf4+ {[%clk 0:00:22.7]} 40. Kd5
{[%clk 0:01:31.1]} 40... axb5 {[%clk 0:00:23.9]} 41. Bb4 {[%clk 0:01:22.9]}
41... e4 {[%clk 0:00:18]} 42. a6 {[%clk 0:01:20.6]} 42... e3 {[%clk 0:00:19.2]}
43. a7 {[%clk 0:01:21.9]} 43... e2 {[%clk 0:00:18.4]} 44. a8=Q {[%clk
0:01:22.8]} 44... e1=Q {[%clk 0:00:19.6]} 45. Qg8+ {[%clk 0:01:22]} 45... Kh5
{[%clk 0:00:20.7]} 46. Nc5 {[%clk 0:01:11.8]} 46... Qh1+ {[%clk 0:00:19.6]} 47.
Kd6 {[%clk 0:01:10.9]} 47... Qd1+ {[%clk 0:00:19.6]} 48. Kc7 {[%clk 0:01:10.8]}
48... Kg4 {[%clk 0:00:18.1]} 49. Qe6+ {[%clk 0:01:11.3]} 49... Kh5 {[%clk
0:00:13.9]} 50. Ne4 {[%clk 0:01:00.9]} 50... Qf3 {[%clk 0:00:12.5]} 51. Nd6
{[%clk 0:00:39.4]} 51... Rf6 {[%clk 0:00:10.6]} 52. Qe8+ {[%clk 0:00:38.9]}
52... Kg4 {[%clk 0:00:11.4]} 53. Bc5 {[%clk 0:00:33.6]} 53... Qd5 {[%clk
0:00:10.8]} 54. Qe2+ {[%clk 0:00:33.5]} 54... Rf3 {[%clk 0:00:10.9]} 55. Qg2+
{[%clk 0:00:31.1]} 55... Kh5 {[%clk 0:00:11.5]} 56. Qh2+ {[%clk 0:00:29.9]}
56... Kg6 {[%clk 0:00:12.5]} 57. Qc2+ {[%clk 0:00:30.2]} 57... Kh5 {[%clk
0:00:12.4]} 58. Qh2+ {[%clk 0:00:27.7]} 58... Kg6 {[%clk 0:00:13.5]} 59. Qc2+
{[%clk 0:00:28.8]} 59... Qd3 {[%clk 0:00:14]} 60. Qa2 {[%clk 0:00:23.3]} 60...
Qxc3 {[%clk 0:00:11.9]} 61. Qe6+ {[%clk 0:00:21.9]} 61... Qf6 {[%clk 0:00:12.8]}
62. Qe8+ {[%clk 0:00:21.5]} 62... Kh7 {[%clk 0:00:11.8]} 63. Qd7+ {[%clk
0:00:21.4]} 63... Qg7 {[%clk 0:00:11.5]} 64. Qxg7+ {[%clk 0:00:19.7]} 64... Kxg7
{[%clk 0:00:13.4]} 65. Ne8+ {[%clk 0:00:20.2]} 65... Kg6 {[%clk 0:00:13.9]} 66.
Nd6 {[%clk 0:00:21.4]} 66... Rb3 {[%clk 0:00:14]} 67. Ne4 {[%clk 0:00:21.4]}
67... h5 {[%clk 0:00:13.9]} 68. Kd6 {[%clk 0:00:22.7]} 68... h4 {[%clk
0:00:14.1]} 69. Ke5 {[%clk 0:00:23.9]} 69... Rb1 {[%clk 0:00:13.7]} 70. Bf2
{[%clk 0:00:23.2]} 70... b4 {[%clk 0:00:14.2]} 71. Be3 {[%clk 0:00:24]} 71... g4
{[%clk 0:00:13.3]} 72. Nd2 {[%clk 0:00:22.4]} 72... Re1 {[%clk 0:00:11.5]} 73.
Kf4 {[%clk 0:00:22.4]} 73... h3 {[%clk 0:00:11.8]} 74. Bf2 {[%clk 0:00:22.2]}
74... h2 {[%clk 0:00:11.5]} 75. Bxe1 {[%clk 0:00:20.3]} 75... h1=Q {[%clk
0:00:12.7]} 76. Kxg4 {[%clk 0:00:22]} 76... Qxe1 {[%clk 0:00:13.3]} 0-1

[Event "*** Titled Tuesday Blitz"]
[Site "Chess.com"]
[Date "2019.07.02"]
[Round "2"]
[White "AdrianaNikolova"]
[Black "VFernandezB"]
[Result "1/2-1/2"]
[WhiteElo "2470"]
[BlackElo "2334"]
[TimeControl "180+2"]
[EndTime "13:28:08 PDT"]
[Termination "Game drawn by repetition"]

1. e4 {[%clk 0:03:01.9]} 1... c5 {[%clk 0:03:00.9]} 2. Nf3 {[%clk 0:03:01.4]}
2... Nc6 {[%clk 0:03:02]} 3. d4 {[%clk 0:03:00.7]} 3... cxd4 {[%clk 0:03:03.2]}
4. Nxd4 {[%clk 0:03:02.6]} 4... g6 {[%clk 0:03:04.5]} 5. Nc3 {[%clk 0:03:03.3]}
5... Bg7 {[%clk 0:03:04.5]} 6. Be3 {[%clk 0:03:04.9]} 6... Nf6 {[%clk
0:03:04.9]} 7. Bc4 {[%clk 0:03:06.4]} 7... O-O {[%clk 0:03:04]} 8. Bb3 {[%clk
0:03:07.3]} 8... a5 {[%clk 0:03:04.4]} 9. a4 {[%clk 0:03:05.3]} 9... Nb4 {[%clk
0:03:02.3]} 10. O-O {[%clk 0:03:02.4]} 10... d5 {[%clk 0:03:02.6]} 11. e5 {[%clk
0:03:03.1]} 11... Ne4 {[%clk 0:03:02.5]} 12. Nxe4 {[%clk 0:02:57]} 12... dxe4
{[%clk 0:03:03.1]} 13. Bf4 {[%clk 0:02:57.5]} 13... Nd5 {[%clk 0:02:55.9]} 14.
Bg3 {[%clk 0:02:57.1]} 14... e3 {[%clk 0:02:54]} 15. Qf3 {[%clk 0:02:37.4]}
15... exf2+ {[%clk 0:02:47.7]} 16. Rxf2 {[%clk 0:02:39.3]} 16... e6 {[%clk
0:02:42.5]} 17. Raf1 {[%clk 0:02:39]} 17... Qc7 {[%clk 0:02:25.3]} 18. Qe4
{[%clk 0:02:39.4]} 18... Nb4 {[%clk 0:02:14.3]} 19. Nb5 {[%clk 0:02:38.5]} 19...
Qb6 {[%clk 0:02:11.5]} 20. c3 {[%clk 0:02:36.4]} 20... Nc6 {[%clk 0:01:59]} 21.
Kh1 {[%clk 0:02:33]} 21... Qc5 {[%clk 0:01:56.6]} 22. Re2 {[%clk 0:02:31.5]}
22... Bd7 {[%clk 0:01:54.2]} 23. Nd6 {[%clk 0:02:28.8]} 23... Qb6 {[%clk
0:01:55.1]} 24. Bc4 {[%clk 0:02:19.3]} 24... Ne7 {[%clk 0:01:55.6]} 25. Qxb7
{[%clk 0:02:15.7]} 25... Qxb7 {[%clk 0:01:55.7]} 26. Nxb7 {[%clk 0:02:17.6]}
26... Nf5 {[%clk 0:01:55.8]} 27. Bf4 {[%clk 0:02:13.6]} 27... Bxa4 {[%clk
0:01:55.2]} 28. Nd6 {[%clk 0:02:09.3]} 28... Bc6 {[%clk 0:01:53.9]} 29. Nxf5
{[%clk 0:02:08.4]} 29... gxf5 {[%clk 0:01:54.2]} 30. Rd1 {[%clk 0:02:02.1]}
30... Rfc8 {[%clk 0:01:53.1]} 31. Ba2 {[%clk 0:01:58.7]} 31... Bb5 {[%clk
0:01:52.8]} 32. Re3 {[%clk 0:01:58.9]} 32... Bc4 {[%clk 0:01:48]} 33. Bxc4
{[%clk 0:01:50.6]} 33... Rxc4 {[%clk 0:01:48.8]} 34. Rd4 {[%clk 0:01:52.1]}
34... Rac8 {[%clk 0:01:47.8]} 35. h4 {[%clk 0:01:47.1]} 35... h5 {[%clk
0:01:47.5]} 36. Rg3 {[%clk 0:01:46.8]} 36... Kh7 {[%clk 0:01:48.1]} 37. Rg5
{[%clk 0:01:38.1]} 37... Rxd4 {[%clk 0:01:48.6]} 38. cxd4 {[%clk 0:01:38]} 38...
Rc4 {[%clk 0:01:47]} 39. Rxh5+ {[%clk 0:01:35.5]} 39... Kg8 {[%clk 0:01:48.3]}
40. Be3 {[%clk 0:01:35.4]} 40... Rc2 {[%clk 0:01:44]} 41. Rg5 {[%clk 0:01:30.7]}
41... Kf8 {[%clk 0:01:40.2]} 42. Rg3 {[%clk 0:01:29.7]} 42... Rxb2 {[%clk
0:01:36.7]} 43. h5 {[%clk 0:01:24.3]} 43... a4 {[%clk 0:01:33.4]} 44. h6 {[%clk
0:01:25.5]} 44... Bh8 {[%clk 0:01:33.3]} 45. Bg5 {[%clk 0:01:26.7]} 45... Rb3
{[%clk 0:01:25.6]} 46. Be3 {[%clk 0:00:58]} 46... a3 {[%clk 0:01:21.9]} 47. h7
{[%clk 0:00:56.8]} 47... Rb1+ {[%clk 0:01:05.8]} 48. Kh2 {[%clk 0:00:55.8]}
48... a2 {[%clk 0:01:07.2]} 49. Rg8+ {[%clk 0:00:49.8]} 49... Ke7 {[%clk
0:01:07.7]} 50. Rxh8 {[%clk 0:00:16.4]} 50... a1=Q {[%clk 0:01:00.1]} 51. Re8+
{[%clk 0:00:12.5]} 51... Kxe8 {[%clk 0:00:58.6]} 52. h8=Q+ {[%clk 0:00:12.6]}
52... Kd7 {[%clk 0:01:00.2]} 53. Kg3 {[%clk 0:00:09.2]} 53... Qc3 {[%clk
0:00:51.7]} 54. Qh6 {[%clk 0:00:05.8]} 54... Re1 {[%clk 0:00:49]} 55. Kf2 {[%clk
0:00:06.8]} 55... Rb1 {[%clk 0:00:34.9]} 56. Qf6 {[%clk 0:00:07.5]} 56... Rb2+
{[%clk 0:00:35.6]} 57. Kf3 {[%clk 0:00:08.1]} 57... Qc4 {[%clk 0:00:29.3]} 58.
Qxf7+ {[%clk 0:00:08.9]} 58... Kc6 {[%clk 0:00:30.8]} 59. Qe8+ {[%clk
0:00:10.4]} 59... Kb7 {[%clk 0:00:28.6]} 60. Qd7+ {[%clk 0:00:08.9]} 60... Qc7
{[%clk 0:00:29]} 61. Qxe6 {[%clk 0:00:08.6]} 61... Qc6+ {[%clk 0:00:30.2]} 62.
Qxc6+ {[%clk 0:00:08.5]} 62... Kxc6 {[%clk 0:00:30.9]} 63. g3 {[%clk 0:00:08.5]}
63... Kd5 {[%clk 0:00:31.7]} 64. Kf4 {[%clk 0:00:09.9]} 64... Ke6 {[%clk
0:00:32.2]} 65. g4 {[%clk 0:00:09.9]} 65... fxg4 {[%clk 0:00:31.9]} 66. Kxg4
{[%clk 0:00:11.8]} 66... Rb1 {[%clk 0:00:31.5]} 67. Kf4 {[%clk 0:00:12.7]} 67...
Rf1+ {[%clk 0:00:32.2]} 68. Ke4 {[%clk 0:00:14.1]} 68... Rd1 {[%clk 0:00:32.3]}
69. Bf4 {[%clk 0:00:14.8]} 69... Re1+ {[%clk 0:00:29.8]} 70. Be3 {[%clk
0:00:16.2]} 70... Rd1 {[%clk 0:00:26.8]} 71. Bf2 {[%clk 0:00:17.2]} 71... Rd2
{[%clk 0:00:27]} 72. Ke3 {[%clk 0:00:15.1]} 72... Ra2 {[%clk 0:00:25.3]} 73. Be1
{[%clk 0:00:12.1]} 73... Kd5 {[%clk 0:00:26.1]} 74. Bb4 {[%clk 0:00:08.4]} 74...
Ra4 {[%clk 0:00:25.7]} 75. Bc5 {[%clk 0:00:08.3]} 75... Ra8 {[%clk 0:00:26.4]}
76. Kf4 {[%clk 0:00:08.5]} 76... Re8 {[%clk 0:00:26.8]} 77. Kf5 {[%clk
0:00:09.3]} 77... Rh8 {[%clk 0:00:26.2]} 78. Kf6 {[%clk 0:00:10.1]} 78... Rh6+
{[%clk 0:00:26.8]} 79. Kg7 {[%clk 0:00:11.6]} 79... Re6 {[%clk 0:00:25.7]} 80.
Kf7 {[%clk 0:00:13.5]} 80... Rc6 {[%clk 0:00:25.8]} 81. Ke7 {[%clk 0:00:13.5]}
81... Re6+ {[%clk 0:00:26.1]} 82. Kd7 {[%clk 0:00:14.6]} 82... Rh6 {[%clk
0:00:26.4]} 83. Ke7 {[%clk 0:00:11.7]} 83... Rh7+ {[%clk 0:00:26.3]} 84. Kf6
{[%clk 0:00:12.7]} 84... Rh6+ {[%clk 0:00:25.4]} 85. Kf5 {[%clk 0:00:13.2]}
85... Re6 {[%clk 0:00:25.1]} 86. Bb4 {[%clk 0:00:09.6]} 86... Rb6 {[%clk
0:00:24.1]} 87. Bc5 {[%clk 0:00:10.7]} 87... Rc6 {[%clk 0:00:25.1]} 88. Ba7
{[%clk 0:00:10]} 88... Ra6 {[%clk 0:00:24.7]} 89. Bc5 {[%clk 0:00:10.8]} 89...
Re6 {[%clk 0:00:24.5]} 90. Kf4 {[%clk 0:00:11.7]} 90... Rh6 {[%clk 0:00:24.4]}
91. Kg5 {[%clk 0:00:12.9]} 91... Rh2 {[%clk 0:00:23.7]} 92. Kf6 {[%clk
0:00:12.7]} 92... Rh6+ {[%clk 0:00:24.2]} 1/2-1/2

[Event "*** Titled Tuesday Blitz"]
[Site "Chess.com"]
[Date "2019.07.02"]
[Round "3"]
[White "Gabix_94"]
[Black "Samantha_Ross"]
[Result "1-0"]
[WhiteElo "2681"]
[BlackElo "2011"]
[TimeControl "180+2"]
[EndTime "13:34:27 PDT"]
[Termination "Gabix_94 won by resignation"]

1. c4 {[%clk 0:03:01.9]} 1... c5 {[%clk 0:03:00.9]} 2. Nc3 {[%clk 0:03:03]} 2...
b6 {[%clk 0:03:01.2]} 3. Nf3 {[%clk 0:03:03.8]} 3... Bb7 {[%clk 0:03:02.7]} 4.
e4 {[%clk 0:03:03.9]} 4... d6 {[%clk 0:03:03.6]} 5. d4 {[%clk 0:03:03.1]} 5...
cxd4 {[%clk 0:03:04.7]} 6. Nxd4 {[%clk 0:03:05]} 6... Nf6 {[%clk 0:03:05.5]} 7.
Qe2 {[%clk 0:03:02.5]} 7... Nbd7 {[%clk 0:03:02.3]} 8. g3 {[%clk 0:03:03.3]}
8... a6 {[%clk 0:03:02.3]} 9. Bg2 {[%clk 0:03:01.6]} 9... Qc7 {[%clk 0:03:03.6]}
10. O-O {[%clk 0:03:02]} 10... e6 {[%clk 0:03:04.7]} 11. b3 {[%clk 0:03:00]}
11... Be7 {[%clk 0:03:05.7]} 12. Bb2 {[%clk 0:03:01.3]} 12... O-O {[%clk
0:03:07.6]} 13. Rac1 {[%clk 0:03:02.5]} 13... Rac8 {[%clk 0:03:08.8]} 14. Rfd1
{[%clk 0:03:03.2]} 14... Rfe8 {[%clk 0:03:08.2]} 15. h3 {[%clk 0:03:04.5]} 15...
Qb8 {[%clk 0:03:09.4]} 16. f4 {[%clk 0:03:02.7]} 16... Qa8 {[%clk 0:03:07.7]}
17. e5 {[%clk 0:02:55.4]} 17... dxe5 {[%clk 0:02:59.4]} 18. Bxb7 {[%clk
0:02:53.1]} 18... Qxb7 {[%clk 0:02:59.4]} 19. fxe5 {[%clk 0:02:54.7]} 19... Bc5
{[%clk 0:02:55]} 20. Kh2 {[%clk 0:02:35.9]} 20... Nxe5 {[%clk 0:02:16.4]} 21.
Qxe5 {[%clk 0:02:37.8]} 21... Nd7 {[%clk 0:02:17.9]} 22. Qe4 {[%clk 0:02:36.9]}
22... f5 {[%clk 0:02:16.3]} 23. Qxb7 {[%clk 0:02:37.6]} 1-0

[Event "*** Titled Tuesday Blitz"]
[Site "Chess.com"]
[Date "2019.07.02"]
[Round "3"]
[White "CalinGheorghiu"]
[Black "letsgoband"]
[Result "1-0"]
[WhiteElo "2288"]
[BlackElo "2269"]
[TimeControl "180+2"]
[EndTime "13:35:55 PDT"]
[Termination "CalinGheorghiu won by resignation"]

1. d4 {[%clk 0:02:57.9]} 1... d5 {[%clk 0:03:00.8]} 2. c4 {[%clk 0:02:58.3]}
2... c6 {[%clk 0:03:02.4]} 3. Nf3 {[%clk 0:02:58]} 3... Nf6 {[%clk 0:03:04.3]}
4. e3 {[%clk 0:02:58.9]} 4... a6 {[%clk 0:03:00.2]} 5. Qc2 {[%clk 0:02:57.6]}
5... Bg4 {[%clk 0:02:57.2]} 6. Ne5 {[%clk 0:02:53.9]} 6... Bh5 {[%clk
0:02:46.7]} 7. Nc3 {[%clk 0:02:53.3]} 7... Nbd7 {[%clk 0:02:47.6]} 8. h3 {[%clk
0:02:52.3]} 8... Nxe5 {[%clk 0:02:33.2]} 9. dxe5 {[%clk 0:02:48]} 9... Ne4
{[%clk 0:02:34.7]} 10. Nxe4 {[%clk 0:02:46.3]} 10... dxe4 {[%clk 0:02:33]} 11.
Bd2 {[%clk 0:02:46.8]} 11... Bg6 {[%clk 0:02:28.1]} 12. Bc3 {[%clk 0:02:45.8]}
12... e6 {[%clk 0:02:29.5]} 13. Be2 {[%clk 0:02:43.9]} 13... Qb6 {[%clk
0:02:29.1]} 14. O-O {[%clk 0:02:43.6]} 14... a5 {[%clk 0:02:27]} 15. Rfd1 {[%clk
0:02:43.1]} 15... Bc5 {[%clk 0:02:24]} 16. b3 {[%clk 0:02:42]} 16... O-O {[%clk
0:02:25]} 17. Rd7 {[%clk 0:02:40.3]} 17... a4 {[%clk 0:02:15.2]} 18. b4 {[%clk
0:02:36.7]} 18... Bxb4 {[%clk 0:02:09.2]} 19. Rb1 {[%clk 0:02:36.2]} 19... c5
{[%clk 0:02:10.3]} 20. a3 {[%clk 0:02:32.7]} 20... Qc6 {[%clk 0:02:11.6]} 21.
Rd6 {[%clk 0:02:32.8]} 21... Qc7 {[%clk 0:01:57.5]} 22. axb4 {[%clk 0:02:33.3]}
22... cxb4 {[%clk 0:01:58.9]} 23. Bxb4 {[%clk 0:02:34.4]} 23... Rfc8 {[%clk
0:01:58.8]} 24. c5 {[%clk 0:02:32.4]} 24... f6 {[%clk 0:01:57.9]} 25. Bc4 {[%clk
0:02:29.5]} 25... fxe5 {[%clk 0:01:55.4]} 26. Bxe6+ {[%clk 0:02:30]} 26... Kh8
{[%clk 0:01:56.9]} 27. Bxc8 {[%clk 0:02:30.6]} 27... Rxc8 {[%clk 0:01:58.8]} 28.
Qxa4 {[%clk 0:02:30.8]} 28... Be8 {[%clk 0:01:57.3]} 29. Qa1 {[%clk 0:02:29]}
29... Bb5 {[%clk 0:01:55]} 30. Qxe5 {[%clk 0:02:27.1]} 30... Bd3 {[%clk
0:01:56.5]} 31. Rc1 {[%clk 0:02:21.3]} 31... h6 {[%clk 0:01:56.8]} 32. Rxh6+
{[%clk 0:02:18.5]} 1-0

[Event "*** Titled Tuesday Blitz"]
[Site "Chess.com"]
[Date "2019.07.02"]
[Round "3"]
[White "ehrenfeld"]
[Black "Warerman"]
[Result "1-0"]
[WhiteElo "2558"]
[BlackElo "2428"]
[TimeControl "180+2"]
[EndTime "13:36:09 PDT"]
[Termination "ehrenfeld won by resignation"]

1. e4 {[%clk 0:03:01.9]} 1... c6 {[%clk 0:02:59.5]} 2. d4 {[%clk 0:03:02.2]}
2... d5 {[%clk 0:03:00.8]} 3. exd5 {[%clk 0:03:03.4]} 3... cxd5 {[%clk
0:03:01.6]} 4. Bd3 {[%clk 0:03:04.9]} 4... Nc6 {[%clk 0:03:01.9]} 5. c3 {[%clk
0:03:05.9]} 5... Qc7 {[%clk 0:03:02.1]} 6. Ne2 {[%clk 0:03:05.6]} 6... Bg4
{[%clk 0:03:01.9]} 7. O-O {[%clk 0:03:06.3]} 7... Nf6 {[%clk 0:02:53.9]} 8. Qe1
{[%clk 0:03:05.4]} 8... Bxe2 {[%clk 0:02:48.3]} 9. Qxe2 {[%clk 0:03:05.7]} 9...
e6 {[%clk 0:02:50.2]} 10. f4 {[%clk 0:03:02.2]} 10... Bd6 {[%clk 0:02:44.7]} 11.
g3 {[%clk 0:02:51.1]} 11... g6 {[%clk 0:02:44.7]} 12. Nd2 {[%clk 0:02:51.8]}
12... O-O {[%clk 0:02:43.1]} 13. Nf3 {[%clk 0:02:52.4]} 13... Rfe8 {[%clk
0:02:42.9]} 14. Bd2 {[%clk 0:02:52.3]} 14... Bf8 {[%clk 0:02:44.2]} 15. Rae1
{[%clk 0:02:52.1]} 15... Bg7 {[%clk 0:02:44.7]} 16. Ne5 {[%clk 0:02:50.9]} 16...
Nd7 {[%clk 0:02:40.6]} 17. h4 {[%clk 0:02:45.8]} 17... f6 {[%clk 0:02:40.9]} 18.
Nxd7 {[%clk 0:02:39.1]} 18... Qxd7 {[%clk 0:02:41]} 19. h5 {[%clk 0:02:40.2]}
19... e5 {[%clk 0:02:34.9]} 20. fxe5 {[%clk 0:02:33]} 20... fxe5 {[%clk
0:02:35.1]} 21. hxg6 {[%clk 0:02:07.1]} 21... e4 {[%clk 0:02:19.5]} 22. gxh7+
{[%clk 0:02:05.2]} 22... Kxh7 {[%clk 0:02:18]} 23. Qh5+ {[%clk 0:02:00.3]} 23...
Kg8 {[%clk 0:02:17.8]} 24. Be2 {[%clk 0:01:49.7]} 24... Rf8 {[%clk 0:02:01.4]}
25. Bg4 {[%clk 0:01:47.7]} 25... Qc7 {[%clk 0:01:41]} 26. Be6+ {[%clk
0:01:45.5]} 1-0

[Event "*** Titled Tuesday Blitz"]
[Site "Chess.com"]
[Date "2019.07.02"]
[Round "3"]
[White "King_of_the_wing"]
[Black "pandamaster3000"]
[Result "0-1"]
[WhiteElo "2147"]
[BlackElo "2276"]
[TimeControl "180+2"]
[EndTime "13:36:11 PDT"]
[Termination "pandamaster3000 won by resignation"]

1. e4 {[%clk 0:02:22]} 1... c5 {[%clk 0:02:58.5]} 2. Nf3 {[%clk 0:02:23.3]} 2...
d6 {[%clk 0:02:59.7]} 3. d4 {[%clk 0:02:24.7]} 3... cxd4 {[%clk 0:03:01.6]} 4.
Nxd4 {[%clk 0:02:26]} 4... Nf6 {[%clk 0:03:02.8]} 5. Nc3 {[%clk 0:02:27.6]} 5...
a6 {[%clk 0:03:03.6]} 6. Bg5 {[%clk 0:02:28.4]} 6... Nbd7 {[%clk 0:03:04.7]} 7.
Bc4 {[%clk 0:02:29]} 7... e6 {[%clk 0:03:03.6]} 8. O-O {[%clk 0:02:29.5]} 8...
b5 {[%clk 0:02:46.6]} 9. Bb3 {[%clk 0:02:30.2]} 9... Nc5 {[%clk 0:02:48]} 10. f4
{[%clk 0:02:25.7]} 10... Be7 {[%clk 0:02:37.8]} 11. Nc6 {[%clk 0:02:23.4]} 11...
Qb6 {[%clk 0:02:16.1]} 12. Nxe7 {[%clk 0:02:24.5]} 12... Nxb3+ {[%clk
0:02:02.9]} 13. Kh1 {[%clk 0:02:24.5]} 13... Nxa1 {[%clk 0:02:04.2]} 14. Nxc8
{[%clk 0:02:25]} 14... Rxc8 {[%clk 0:02:06.1]} 15. Qxa1 {[%clk 0:02:07.5]} 15...
Rxc3 {[%clk 0:02:05.6]} 16. Bxf6 {[%clk 0:02:04.3]} 16... Rxc2 {[%clk
0:02:03.4]} 17. Bxg7 {[%clk 0:02:00.9]} 17... Rg8 {[%clk 0:02:04.3]} 18. b3
{[%clk 0:02:01.5]} 18... e5 {[%clk 0:02:01]} 19. Qd1 {[%clk 0:01:55.6]} 19...
Rf2 {[%clk 0:01:54.8]} 20. Bf6 {[%clk 0:01:29.9]} 20... Rgxg2 {[%clk 0:01:46.8]}
21. Rxf2 {[%clk 0:01:28.7]} 21... Qxf2 {[%clk 0:01:45.4]} 0-1

[Event "*** Titled Tuesday Blitz"]
[Site "Chess.com"]
[Date "2019.07.02"]
[Round "3"]
[White "Gattass"]
[Black "SubrotaBiswas"]
[Result "0-1"]
[WhiteElo "2298"]
[BlackElo "2500"]
[TimeControl "180+2"]
[EndTime "13:36:29 PDT"]
[Termination "SubrotaBiswas won by resignation"]

1. d4 {[%clk 0:03:01.9]} 1... d5 {[%clk 0:02:59.2]} 2. c4 {[%clk 0:03:02.9]}
2... e6 {[%clk 0:03:00.1]} 3. Nf3 {[%clk 0:03:02.1]} 3... Nf6 {[%clk 0:03:00.8]}
4. Nc3 {[%clk 0:03:02.8]} 4... c5 {[%clk 0:02:59.2]} 5. cxd5 {[%clk 0:03:02.7]}
5... exd5 {[%clk 0:03:01]} 6. Bg5 {[%clk 0:03:00.9]} 6... c4 {[%clk 0:02:56.1]}
7. e4 {[%clk 0:02:54.6]} 7... dxe4 {[%clk 0:02:54.3]} 8. Ne5 {[%clk 0:02:52.5]}
8... Nc6 {[%clk 0:02:50.2]} 9. Bxc4 {[%clk 0:02:38.2]} 9... Be6 {[%clk
0:02:38.8]} 10. Bxe6 {[%clk 0:02:36.2]} 10... fxe6 {[%clk 0:02:40.6]} 11. Nxc6
{[%clk 0:02:36.8]} 11... bxc6 {[%clk 0:02:42.5]} 12. Nxe4 {[%clk 0:02:33.9]}
12... Bb4+ {[%clk 0:02:36.9]} 13. Nc3 {[%clk 0:02:29.3]} 13... Qd5 {[%clk
0:02:34.9]} 14. Bxf6 {[%clk 0:01:58.2]} 14... Qxg2 {[%clk 0:02:29.1]} 15. Qh5+
{[%clk 0:01:28.2]} 15... g6 {[%clk 0:02:29.5]} 16. Qe5 {[%clk 0:01:28.9]} 16...
Qxh1+ {[%clk 0:02:20.9]} 17. Ke2 {[%clk 0:01:29.3]} 17... Qxa1 {[%clk
0:02:20.3]} 18. Qxe6+ {[%clk 0:01:29.4]} 18... Kf8 {[%clk 0:02:21.6]} 19. Ne4
{[%clk 0:00:58.4]} 19... Re8 {[%clk 0:02:13.5]} 20. Qxc6 {[%clk 0:00:55.6]}
20... Rxe4+ {[%clk 0:02:02.6]} 21. Qxe4 {[%clk 0:00:55.6]} 21... Qe1+ {[%clk
0:02:03]} 0-1

[Event "*** Titled Tuesday Blitz"]
[Site "Chess.com"]
[Date "2019.07.02"]
[Round "3"]
[White "IveBeenThroughPain"]
[Black "1g41-0"]
[Result "1-0"]
[WhiteElo "2320"]
[BlackElo "2475"]
[TimeControl "180+2"]
[EndTime "13:36:30 PDT"]
[Termination "IveBeenThroughPain won by resignation"]

1. d4 {[%clk 0:03:01.9]} 1... d5 {[%clk 0:01:42.3]} 2. c4 {[%clk 0:03:01.2]}
2... c6 {[%clk 0:01:43.1]} 3. Nf3 {[%clk 0:03:02.1]} 3... Nf6 {[%clk 0:01:42.5]}
4. e3 {[%clk 0:03:03.5]} 4... Bf5 {[%clk 0:01:42.8]} 5. Nc3 {[%clk 0:03:04.3]}
5... e6 {[%clk 0:01:43.7]} 6. Be2 {[%clk 0:03:05.2]} 6... Nbd7 {[%clk
0:01:43.9]} 7. Nh4 {[%clk 0:03:06.3]} 7... Bg6 {[%clk 0:01:43.7]} 8. O-O {[%clk
0:03:04.2]} 8... Bd6 {[%clk 0:01:44.4]} 9. Nxg6 {[%clk 0:03:04.9]} 9... hxg6
{[%clk 0:01:45.6]} 10. g3 {[%clk 0:03:06.5]} 10... Qe7 {[%clk 0:01:38.1]} 11.
Qc2 {[%clk 0:03:07.3]} 11... O-O-O {[%clk 0:01:38.6]} 12. e4 {[%clk 0:03:08.4]}
12... dxe4 {[%clk 0:01:39.4]} 13. Nxe4 {[%clk 0:03:09.4]} 13... Nxe4 {[%clk
0:01:41.3]} 14. Qxe4 {[%clk 0:03:10.3]} 14... Nf6 {[%clk 0:01:43.2]} 15. Qg2
{[%clk 0:03:09]} 15... Kb8 {[%clk 0:01:43.1]} 16. Be3 {[%clk 0:03:08.4]} 16...
c5 {[%clk 0:01:32.9]} 17. d5 {[%clk 0:03:05.8]} 17... exd5 {[%clk 0:01:32.7]}
18. cxd5 {[%clk 0:03:06.8]} 18... Be5 {[%clk 0:01:11.2]} 19. Bf3 {[%clk
0:03:04.3]} 19... Bxb2 {[%clk 0:01:07.8]} 20. Rab1 {[%clk 0:03:04.8]} 20... Be5
{[%clk 0:00:58.9]} 21. d6 {[%clk 0:03:05]} 21... Qxd6 {[%clk 0:01:00.5]} 22.
Rxb7+ {[%clk 0:03:05.4]} 22... Kc8 {[%clk 0:01:01.9]} 23. Rfb1 {[%clk 0:02:37]}
23... c4 {[%clk 0:00:48.1]} 24. Rxa7 {[%clk 0:02:19.9]} 24... c3 {[%clk
0:00:41.5]} 25. Bg4+ {[%clk 0:02:21.2]} 1-0